Cogmind - Beta 13 @@@ ROGUE MODE // 2024.04.01 @ 08:02:54 Player: Ryusho Result: Destroyed by OL-2X8(R) with Subdweller Beam Cannon Performance ------------- Evolutions (0) 0 Regions Visited (3) 600 Robots Destroyed (12) 60 Value Destroyed (431) 431 Prototype IDs (0) 0 Alien Tech Used (0) 0 Bonus (0) 0 TOTAL SCORE: 1091 Bonus ------- None Cogmind --------- Core Integrity 0/250 Matter 175/300 Energy 100/100 System Corruption 4% Temperature Cool (9) Movement Core (1350) Ox26 Location -10/Subcaves Parts ------- > --- POWER (1) -------- (None) > --- PROPULSION (2) --- (None) > --- UTILITY (2) ------ Huge Storage Unit > --- WEAPON (2) ------- (None) > --- INVENTORY (25) --- Humpback Datajack Peak State ------------ > --- POWER ------------ Light Nuclear Core > --- PROPULSION ------- Wheel Wheel > --- UTILITY ---------- Huge Storage Unit Signal Interpreter > --- WEAPON ----------- Small Laser Rocket Launcher > --- INVENTORY -------- Improved Ion Engine Light Assault Rifle Datajack [Rating: 10] Favorites ----------- Power Light Nuclear Core Engine Improved Ion Engine Power Core Light Nuclear Core Propulsion Wheel Leg Aluminum Leg Wheel Wheel Utility Signal Interpreter Storage Huge Storage Unit Processor Signal Interpreter Weapon Light Assault Rifle Energy Gun Small Laser Ballistic Gun Light Assault Rifle Launcher Rocket Launcher Build | -11 -10 -10 -10 ------- Run | Yrd Mat Min Sub Slots Evolved . | . . . . Power . | . . . . Propulsion . | . . . . Utility . | . . . . Weapon . | . . . . Parts Attached 20 | 5 9 4 2 Power 3 | 1 1 1 . Engine 2 | 1 . 1 . Core 1 | . 1 . . Reactor . | . . . . Propulsion 4 | 2 2 . . Treads . | . . . . Leg 2 | 2 . . . Wheel 2 | . 2 . . Hover . | . . . . Flight . | . . . . Utility 4 | . 4 . . Device . | . . . . Storage 3 | . 3 . . Processor 1 | . 1 . . Hackware . | . . . . Protection . | . . . . Artifact . | . . . . Weapon 9 | 2 2 3 2 Energy Gun 1 | . 1 . . Energy Cannon . | . . . . Ballistic Gun 5 | 2 1 1 1 Ballistic Cannon . | . . . . Launcher 3 | . . 2 1 Special Weapon . | . . . . Impact Weapon . | . . . . Slashing Weapon . | . . . . Piercing Weapon . | . . . . Special Melee Weapon . | . . . . Unidentified Prototypes . | . . . . Parts Lost 13 | . 5 1 7 Power 3 | . 1 1 1 Propulsion 4 | . 2 . 2 Utility 1 | . . . 1 Weapon 5 | . 2 . 3 Highest Loss Streak 6 | . 4 1 6 To Critical Strikes . | . . . . Average Slot Usage (%) 84 | . 84 99 68 Engine 4 | . 2 4 8 Core 8 | . 11 9 . Leg 9 | . 16 . . Wheel 16 | . 10 28 21 Storage 13 | . 13 14 14 Processor 7 | . 4 14 8 Energy Gun 6 | . 3 14 7 Ballistic Gun 15 | . 22 7 7 Launcher 1 | . . 6 . Naked Turns . | . . . . Heaviest Build 92 | 5 87 92 89 Greatest Support 20 | 20 20 20 20 Greatest Overweight (x) 26 | . 8 4 26 Average Overweight (x) 2 | . 1 4 5 Largest Inventory Capacity 25 | 5 25 25 25 Average Capacity 18 | 5 14 25 25 Most Carried 5 | 4 5 3 3 Average Carried 3 | 2 3 2 2 Final Capacity 25 | 5 25 25 25 Final Carried 3 | 3 3 2 3 Class Distribution -------------------- 100% | Mutant Dominant Class ---------------- Mutant | -10/Materials Mutant | -10/Mines Mutant | -10/Subcaves Resources | -11 -10 -10 -10 ----------- Run | Yrd Mat Min Sub Matter Collected 499 | 264 128 107 . Remotely . | . . . . Salvage Created 411 | 39 270 5 97 Parts 32 | 3 17 4 8 Haulers Intercepted . | . . . . Recyclers Shooed 2 | . 2 . . Parts Field Recycled . | . . . . Retrieved Matter . | . . . . Parts Self-Destructed . | . . . . Prevented . | . . . . Kills | -11 -10 -10 -10 ------- Run | Yrd Mat Min Sub Combat Hostiles Destroyed 12 | 1 6 1 4 Guns 7 | 1 6 . . AOE 5 | . . 1 4 Classes Destroyed 4 | 1 . 2 1 Tunneler 1 | . . 1 . Grunt 7 | 1 6 . . Subdweller 4 | . . . 4 Assembled 1 | . . 1 . Best Kill Streak 4 | 1 2 2 4 Combat Bots Only 4 | 1 2 1 4 Max Kills in Single Turn 2 | 1 1 2 2 Gunslinging . | . . . . Exploded 2 | . . 1 2 Melee . | . . . . Uniques/NPCs Destroyed . | . . . . Combat | -11 -10 -10 -10 -------- Run | Yrd Mat Min Sub Hostile Shots Fired 92 | 8 56 . 28 Missed 25 | 4 11 . 10 Damage Taken 1209 | 44 569 55 541 Core 265 | . 81 23 161 Absorbed by Shields . | . . . . Core Remaining (%) 100 | 100 . . . Volleys Fired 87 | 7 56 15 9 Largest 2 | 2 2 2 2 Hottest 73 | 40 60 73 73 Shots Fired 149 | 14 97 26 12 Gun 134 | 14 97 20 3 Cannon . | . . . . Launcher 15 | . . 6 9 Special . | . . . . Kinetic 118 | 14 95 9 . Thermal 16 | . 2 11 3 Explosive 15 | . . 6 9 Electromagnetic . | . . . . Robot Hit Streak 9 | 2 9 2 9 Robot Miss Streak 8 | 4 8 . 1 Penetration Max . | . . . . Secondary Targets . | . . . . Shots Hit Robots 76 | 6 58 2 10 Core Hits 33 | 2 20 5 6 Critical Kills . | . . . . Critical Parts Destroyed . | . . . . Critical Strikes . | . . . . Melee Attacks . | . . . . Impact . | . . . . Slashing . | . . . . Piercing . | . . . . Sneak Attacks . | . . . . Combat Hostiles . | . . . . Follow-up Attacks . | . . . . Damage Inflicted 1316 | 63 507 129 617 Guns 580 | 63 507 . 10 Cannons . | . . . . Explosions 736 | . . 129 607 Melee . | . . . . Ramming . | . . . . Kinetic 560 | 63 497 . . Thermal 20 | . 10 . 10 Explosive 736 | . . 129 607 Electromagnetic . | . . . . Impact . | . . . . Slashing . | . . . . Piercing . | . . . . Highest Corruption 4 | . 4 4 4 Average Corruption 3 | . 1 4 4 Corruption Purged . | . . . . Corruption Blocked . | . . . . Effects 15 | . 7 6 2 Message Errors 3 | . 1 2 . Matter Fused 1 | . 1 . . Heat Flow Errors 2 | . 1 1 . Energy Discharges 1 | . 1 . . Data Loss (minor) 7 | . 2 3 2 Alerts 1 | . 1 . . Overload Shots . | . . . . Overflow Damage 57 | . . 11 46 Projectiles . | . . . . Explosions 57 | . . 11 46 Melee . | . . . . Knockbacks . | . . . . Impact . | . . . . Kinetic . | . . . . Secondary . | . . . . Self-Inflicted Damage 96 | . . 58 38 Shots 4 | . . 3 1 Rammed . | . . . . Targets Rammed . | . . . . Kicked . | . . . . Crushed . | . . . . Highest Temperature 247 | 6 247 158 . Average Temperature 35 | 6 32 44 . Received Heat Transfer 414 | 24 330 . 60 Siege Activations . | . . . . Robots Corrupted . | . . . . Combat Hostiles . | . . . . Parts Fried . | . . . . Impact Corruptions . | . . . . Robots Melted . | . . . . Combat Hostiles . | . . . . Parts Melted . | . . . . Heat Transferred 50 | . 25 . 25 Parts Sabotaged . | . . . . Parts Stolen . | . . . . Parts Stripped . | . . . . Power Chain Reactions . | . . . . Alert | -11 -10 -10 -10 ------- Run | Yrd Mat Min Sub Peak Influence 118 | 20 118 18 . Initial 13 | . 13 . . Average 33 | 1 47 4 . Maximum Alert Level . | . . . . Low Security (%) 100 | 100 100 100 . Level 1 . | . . . . Level 2 . | . . . . Level 3 . | . . . . Level 4 . | . . . . Level 5 . | . . . . High Security . | . . . . Max Security . | . . . . Squads Dispatched 1 | . 1 . . Investigation . | . . . . Extermination . | . . . . Reinforcement 1 | . 1 . . Assault . | . . . . Garrison . | . . . . Intercept . | . . . . Searches Triggered . | . . . . Construction Impeded . | . . . . Haulers Reinforced . | . . . . Active Scanning Responses . | . . . . Cargo Convoy Interrupts . | . . . . Stealth | -11 -10 -10 -10 --------- Run | Yrd Mat Min Sub Distress Signals . | . . . . Communications Jammed . | . . . . Distress Signals . | . . . . Times Spotted 20 | 1 12 1 6 Peak Tracking Total 2 | 1 2 1 2 Tactical Retreats . | . . . . Traps | -11 -10 -10 -10 ------- Run | Yrd Mat Min Sub Traps Triggered 4 | . 4 . . Indirectly . | . . . . Trap Hack Attempts . | . . . . Triggered . | . . . . Disarmed . | . . . . Reprogrammed . | . . . . Reused . | . . . . Traps Extracted . | . . . . Installed . | . . . . Triggered 1 | . . . 1 Machines | -11 -10 -10 -10 ---------- Run | Yrd Mat Min Sub Machines Disabled . | . . . . Max in Single Turn . | . . . . Machines Repaired . | . . . . Machines Dismantled . | . . . . Machines Sabotaged . | . . . . Overloaded Fab Kills . | . . . . Hacking | -11 -10 -10 -10 --------- Run | Yrd Mat Min Sub Machines Accessed 5 | . 5 . . Terminals 4 | . 4 . . Fabricators . | . . . . Repair Stations . | . . . . Recycling Units 1 | . 1 . . Scanalyzers . | . . . . Garrison Access . | . . . . Total Hacks 15 | . 15 . . Successful 10 | . 10 . . Failed 5 | . 5 . . Catastrophic . | . . . . Database Lockouts . | . . . . Manual . | . . . . Terminals 14 | . 14 . . Fabricators . | . . . . Repair Stations . | . . . . Recycling Units 1 | . 1 . . Scanalyzers . | . . . . Garrison Access . | . . . . Terminal Hacks 9 | . 9 . . Record 2 | . 2 . . Robot Analysis 2 | . 2 . . Emergency Access Points 1 | . 1 . . Unreport Threat 1 | . 1 . . Locate Traps 1 | . 1 . . Maintenance Status 1 | . 1 . . Zone Layout 1 | . 1 . . Fabricator Hacks . | . . . . Repair Station Hacks . | . . . . Recycling Unit Hacks 1 | . 1 . . Report Inventory 1 | . 1 . . Scanalyzer . | . . . . Garrison Access Hacks . | . . . . Unauthorized Hacks . | . . . . Terminals . | . . . . Fabricators . | . . . . Repair Stations . | . . . . Recycling Units . | . . . . Scanalyzers . | . . . . Garrison Access . | . . . . Data Cores Recovered . | . . . . Used . | . . . . Hacking Detections 3 | . 3 . . Full Trace Events . | . . . . Feedback Events . | . . . . Feedback Blocked . | . . . . Robot Schematics Acquired . | . . . . Robots Built . | . . . . Authchips . | . . . . Time . | . . . . Total Robot Build Rating . | . . . . Part Schematics Acquired . | . . . . Parts Built . | . . . . Authchips . | . . . . Time . | . . . . Total Part Build Rating . | . . . . Parts Repaired . | . . . . Time . | . . . . Parts Recycled . | . . . . Recycled Matter . | . . . . Retrieved Matter . | . . . . Retrieved Components . | . . . . Parts Scanalyzed . | . . . . Part Schematics Acquired . | . . . . Parts Damaged . | . . . . Bothacking | -11 -10 -10 -10 ------------ Run | Yrd Mat Min Sub Used RIF Installer . | . . . . Robots Hacked . | . . . . Non-combat . | . . . . Combat . | . . . . Robot Hacks Applied . | . . . . Relay Couplers Released . | . . . . Fabnet Peak Effective % . | . . . . Robots Rewired . | . . . . Allies Hacked . | . . . . Hacks Repelled . | . . . . Allies | -11 -10 -10 -10 -------- Run | Yrd Mat Min Sub Total Allies . | . . . . Largest Group . | . . . . Highest-Rated Group . | . . . . Highest-Rated Ally . | . . . . Total Orders . | . . . . Ally Attacks . | . . . . Total Damage . | . . . . Kills . | . . . . Allies Corrupted . | . . . . Allies Melted . | . . . . Intel | -11 -10 -10 -10 ------- Run | Yrd Mat Min Sub Robot Analysis Total 2 | . 2 . . Derelict Logs Recovered 2 | . . . 2 Drone Launches . | . . . . Drone Recoveries . | . . . . Exploration | -11 -10 -10 -10 ------------- Run | Yrd Mat Min Sub Turns Passed 1626 | 97 885 326 318 Spaces Moved 882 | 67 463 171 181 Core 25 | 20 4 . 1 Treads . | . . . . Legs 277 | 47 230 . . Wheels 580 | . 229 171 180 Hover . | . . . . Flight . | . . . . Fastest Speed 50 | 50 95 140 140 Average Speed 141 | 99 139 140 163 Slowest Speed 1350 | 120 450 140 1350 Overloaded Moves . | . . . . Propulsion Burnouts . | . . . . Robots Hopped . | . . . . Cave-ins Triggered . | . . . . Exploration Rate (%) 37 | 7 74 47 22 Regions Visited 3 Branch Regions 2 Pre-discovered Areas 1 | . . . 1 Known Exits Taken 2 | . 1 1 . Unknown Exits Taken 1 | 1 . . . Scrap Searched . | . . . . Spaces Dug . | . . . . Terrain Destroyed 94 | . . 54 40 Melee . | . . . . Projectile . | . . . . AOE 94 | . . 54 40 Terrain Rammed . | . . . . Walls Destroyed . | . . . . Machines Disabled . | . . . . Actions | -11 -10 -10 -10 --------- Run | Yrd Mat Min Sub Total 1134 | 86 622 232 194 Wait 128 | . 84 43 1 Move 879 | 66 462 170 181 Hop . | . . . . Pick Up 18 | 8 9 . 1 Fast Attach . | . . . . Attach 14 | 5 7 1 1 Detach . | . . . . Swap 6 | . 2 3 1 Drop 2 | . 2 . . Fire 87 | 7 56 15 9 Melee . | . . . . Ram . | . . . . Kick . | . . . . Crush . | . . . . Escape Stasis . | . . . . Rewire . | . . . . Trap . | . . . . Miscellaneous . | . . . . Route ------- -11/Scrapyard -10/Materials (discovered 4 exits: *Mat x2 / *Min x2) -10/Mines -10/Subcaves (discovered 1 exit: *Mat) History --------- Turn | Location | Event 2 | -11/Scrapyard | Met Revision 17 68 | -11/Scrapyard | Discovered new exit (range 8) 98 | -11/Scrapyard | Entered Materials 318 | -10/Materials | Build established: Mutant 378 | -10/Materials | Discovered new exit (range 14) 532 | -10/Materials | Discovered new exit (range 8) 642 | -10/Materials | Lost 4 parts (2n2w) 697 | -10/Materials | Discovered new exit (range 14) 763 | -10/Materials | Identified exit to Materials 871 | -10/Materials | Discovered new exit (range 16) 980 | -10/Materials | Identified exit to Mines 983 | -10/Materials | Entered Mines 987 | -10/Mines | Met a Derelict bent on vengeance 1092 | -10/Mines | Assembled infested the area 1097 | -10/Mines | Assisted by a Guerilla fighting off Assembled 1296 | -10/Mines | Discovered new exit (range 9) 1308 | -10/Mines | Identified exit to Subcaves 1309 | -10/Mines | Entered Subcaves 1312 | -10/Subcaves | Learned location of 1 exit from Materials 1318 | -10/Subcaves | Discovered new exit (range 8) 1331 | -10/Subcaves | Identified exit to Materials 1467 | -10/Subcaves | Ambushed by Subdwellers from Twisted Machinery 1474 | -10/Subcaves | Ambushed by Subdweller buried in earth 1475 | -10/Subcaves | Ambushed by Subdweller buried in earth 1485 | -10/Subcaves | Core integrity fell below 50% 1522 | -10/Subcaves | Lost 6 parts (1p1n1u3w) 1613 | -10/Subcaves | Core integrity fell below 20% 1627 | -10/Subcaves | Destroyed by OL-2X8(R) with Subdweller Beam Cannon Last Messages --------------- Subatomizers dissect the Sub. Power Source. Sml. Laser destroyed. The unstable cave ceiling collapses. Destroyed Scrap Shield. Destroyed Sub. Power Source. ID-JFK(R) destroyed. [Achievement: Let's See Who's Tougher] DN-0K2(R) destroyed. Signal Interpreter destroyed. Destroyed Signal Interpreter. Rocket Launcher destroyed. Destroyed Rocket Launcher. Imp. Ion Engine destroyed. Destroyed Imp. Ion Engine. The unstable cave ceiling collapses. Disposable Heat Sink crushed. Acquired Humpback. The unstable cave ceiling collapses. System corrupted: Component data lost. Wheel destroyed. Map ----- +----------------------------------------------------+ | ???????????????????????????????????????????# ## | | ??????????????????????????????????????????## | | ?????????????????????????????????????? ??# # | | ?????????????????????????????????????# #?# ### | | ?????????????????????????????????????# ?# #?? | | ?????????????????????????????????????# ### ##?? | | ?????????????????????????????????????# ## ##??? | | ?????????????????????????????????????# ## ##???? | | ???????????????????????????????????### ##?### | | ????????????????????????????????#### ### # | | ???????????????????????????????## # # | | ??????????????????????????????## ## " | | ??????????????????????????????# | | ??????????????????????????????# | | ??????????????????????????????### ## | | ????????????????????????????????## ## | | ??????????????????????????????#### | | ??????????????????????????????# | | ??????????????????????????????# ### | | ??????????????????????????????# ##?## "" | | ??????????????????????????????# #??## ## | | ???????????????##??????????#### ## #? | | ???????????????# ###?????# ## #? | | ????????????????# ??### ####? | | ?????????????????# ## # ###???# | | ?????????????????# @ ##???#"" | | ?????????????????## ###????#"" | | ??????????????????# #### R #??????# | | ????????????????# ????##R #??? | | ????????????????## ??????# ## | | ?????????????????# ???????## ## | | ?????????????????#????????# ## ## | | ???????????????????????####### #? ## ## | | ???????????????????????# ## # #?###? | | ???????????????????????# #?????? | | ???????????????????????# ### ## ##??????? | | ?????????????????????????### ####?? ??????? | | ?????????????????????????# #????? ???????# | | ?????????????????????????# ##?????? #???????? | | ?????????????????????????### ##???????? ??????? | | ???????????????????????????###?????????? ???????? | | ????????????????????????????????????????? ???????? | | ?????????????????????????????????????????????????? | | ?????????????????????????????????????????????????? | | ?????????????????????????????????????????????????? | | ?????????????????????????????????????????????????? | | ?????????????????????????????????????????????????? | | ?????????????????????????????????????????????????? | | ?????????????????????????????????????????????????? | | ?????????????????????????????????????????????????? | +----------------------------------------------------+ Best States ------------- Heat Dissipation 25 Energy Generation 14 Energy Capacity 265 Matter Stores 300 Matter Capacity 300 Sight Range 16 Terrain Scan Density 10 Evasion (%) 55 Item Schematics ----------------- None Robot Schematics ------------------ None Fabricated ------------ Nothing Alien Tech Used ----------------- None Achievements -------------- Everything Is Under Control I Survived The Infestation Let's See Who's Tougher Challenges ------------ None Game ------ Seed ArcBottomlessBeam Manual? 0 Play Time 00:19:09 Cumulative 7.4 hours Start 2024.04.01 @ 07:45:52 End 2024.04.01 @ 08:02:54 Sessions 1 Manual Loads 0 Difficulty Rogue Special Mode None Game No. 9 Rogue 6 Adventurer 3 Explorer 0 Win Type - Total 0 Types 0/0/0/0/0/0/0/0/0 Lore% 8 Gallery% 9 Achievement% 8 Wizard Run 0 Options --------- Layout 1 ASCII 0 Keyboard 0 Movement Mouse Keybinds 0 Fullscreen 1 Font 32/SmallcapsGlow Map View 50x35 Zoom Use 0% Tactical HUD 0 Map Filters NONE Filters NONE Steam 1 RUN: fdcc6d5e-a478-4693-a7c7-4b11c56430ef